fUSD/lending_fUSD_20240127
["ID","MTS","AMOUNT","RATE_DAILY","PERIOD"]
[312873075,1706386048113,-105.97177191,0.000225,2]
[312873076,1706386048134,-49.12295577,0.000225,2]
[312873077,1706386049994,285.91347788,0.00022499,2]
[312873078,1706386050337,155.0,0.00022499,2]
[312873079,1706386051467,1262.71758815,0.00022499,2]
[312873080,1706386052153,371.8763272,0.00022499,2]
[312873081,1706386052296,1047.30860009,0.00022499,2]
[312873082,1706386052950,155.0,0.00022499,2]
[312873083,1706386055337,250.76825842,0.00022499,2]
[312873084,1706386056157,630.041593,0.00022499,2]
[312873085,1706386056355,2785.65215681,0.00022499,2]
[312873086,1706386056700,200.0,0.00021722,2]
[312873087,1706386056973,1712.39042015,0.00022499,2]
[312873088,1706386057182,191.24014811,0.00022499,2]
[312873089,1706386057306,176.95076611,0.00022499,2]
[312873090,1706386058956,2149.64230706,0.00022499,2]
[312873091,1706386059507,2604.9999829,0.00022499,2]
[312873092,1706386064362,7797.6592019,0.00022499,2]
[312873093,1706386064462,33819.59593894,0.00022499,2]
[312873094,1706386064600,524.98204654,0.00022499,2]
[312873095,1706386065586,289.4970497,0.00022499,2]
[312873096,1706386065616,1177.38177053,0.00022499,2]
[312873097,1706386065950,4357.46407703,0.00022499,2]
[312873098,1706386066328,10544.64901414,0.00022499,2]
[312873099,1706386070904,3035.32511196,0.00022499,2]
[312873100,1706386071994,15244.96035743,0.00022499,2]
[312873101,1706386074762,502.3142963,0.00022499,2]
[312873102,1706386077139,-313.25057214,0.000225,2]
[312873103,1706386077159,-474.09820608,0.000225,2]
[312873104,1706386077179,-5453.28620354,0.000225,2]
[312873105,1706386077199,-204.7712179,0.00022501,2]
[312873106,1706386077219,-1084.59380034,0.00022501,2]
[312873107,1706386078882,242.92708466,0.00022499,2]
[312873108,1706386079466,155.0,0.00022499,2]
[312873109,1706386080005,1205.81665961,0.00022499,2]
[312873110,1706386081144,1062.79532601,0.00022499,2]
[312873111,1706386083466,904.0,0.0002176,2]
[312873112,1706386083995,387.70066917,0.00022499,2]
[312873113,1706386084718,247.14293788,0.00022498,2]
[312873115,1706386094927,155.0,0.00022499,2]
[312873116,1706386096128,401.29405049,0.00022499,2]
[312873118,1706386099198,155.0,0.00022499,2]
[312873119,1706386099273,2387.52098125,0.00021606,2]
[312873120,1706386100055,496.85,0.00022036,2]
[312873121,1706386100396,496.85,0.00022096,2]
[312873122,1706386100484,496.85,0.00022157,2]
[312873123,1706386100688,496.85,0.00022217,2]
[312873124,1706386100901,496.85,0.00022278,2]
[312873125,1706386101111,155.0,0.00022499,2]
[312873126,1706386101139,496.85,0.00022338,2]
[312873127,1706386101334,496.85,0.00022399,2]
[312873128,1706386101371,420.3224339,0.00021606,2]
[312873129,1706386101536,496.85,0.00022459,2]
[312873130,1706386104112,22798.85206081,0.00022499,2]
[312873131,1706386104434,19166.91135148,0.000225,2]
[312873132,1706386106830,5224.49310087,0.00022499,2]
[312873133,1706386107929,7988.00417164,0.00022499,2]
[312873134,1706386109783,1846.50901311,0.00021831,2]
[312873135,1706386111681,155.0,0.00022499,2]
[312873136,1706386114568,155.0,0.00022499,2]
[312873138,1706386120852,155.0,0.00022499,2]
[312873139,1706386123008,364.75082717,0.00022499,2]
[312873143,1706386130151,228.74402577,0.00022499,2]
[312873144,1706386131518,2604.9999829,0.00022499,2]
[312873145,1706386131832,176.95076611,0.00022499,2]
[312873146,1706386137561,2149.64230706,0.00022499,2]
[312873147,1706386138952,2785.65215681,0.00022499,2]
[312873148,1706386139110,699.19928448,0.00022499,2]
[312873150,1706386141694,150.0,0.00022499,2]
[312873151,1706386141718,150.0,0.00022499,2]
[312873155,1706386148849,10544.64901414,0.00022499,2]
[312873156,1706386148877,362.37352791,0.00022499,2]
[312873157,1706386149964,155.0,0.00022499,2]
[312873158,1706386152172,204.7712179,0.00022499,2]
[312873159,1706386153384,242.92708466,0.00022499,2]
[312873160,1706386160295,566.68010223,0.00022499,2]
[312873161,1706386163076,247.14293788,0.00022499,2]
[312873163,1706386165520,1043.23433968,0.00022499,2]
[312873164,1706386169534,1419.65879106,0.00022499,2]
[312873165,1706386169624,401.29405049,0.00022499,2]
[312873166,1706386170359,155.0,0.00022499,2]
[312873169,1706386175976,2907.00228459,0.00022499,2]
[312873170,1706386177830,1258.46384015,0.00022499,2]
[312873172,1706386186110,289.4970497,0.00022499,2]
[312873173,1706386188331,176.61,0.00022,2]
[312873174,1706386190504,387.70066917,0.00022499,2]
[312873175,1706386191019,178.15674416,0.00022499,2]
[312873176,1706386191151,1568.58,0.00021771,2]
[312873177,1706386192439,3473.95871237,0.00022499,2]
[312873178,1706386195044,155.0,0.00022499,2]
[312873179,1706386196450,6821.49928316,0.00022499,2]
[312873182,1706386204532,2604.9999829,0.00022499,2]
[312873184,1706386205214,2495.60370826,0.00022499,2]
[312873185,1706386205816,197.31224303,0.00022499,2]
[312873186,1706386206500,1205.81665961,0.00022499,2]
[312873187,1706386206648,228.74402577,0.00022499,2]
[312873188,1706386207431,3035.32511196,0.00022499,2]
[312873189,1706386207631,1063.04366994,0.00022499,2]
[312873190,1706386208333,176.95076611,0.00022499,2]
[312873191,1706386208691,371.8763272,0.00022499,2]
[312873192,1706386209132,203.04824283,0.00022499,2]
[312873193,1706386209740,1052.17110452,0.00022499,2]
[312873194,1706386213039,2500.0,0.00022411,2]
[312873195,1706386224439,233.62091039,0.00022499,2]
[312873197,1706386225908,242.92708466,0.00022499,2]
[312873202,1706386231379,-1787.98780924,0.000225,2]
[312873203,1706386231395,-421.02653999,0.000225,2]
[312873204,1706386231434,-929.82241406,0.000225,2]
[312873205,1706386231450,-435.04752656,0.000225,2]
[312873206,1706386231465,-1133.07842385,0.000225,2]
[312873207,1706386231476,-91.20659919,0.000225,2]
[312873208,1706386231490,-401.911,0.000225,2]
[312873209,1706386231502,-736.15078688,0.000225,2]
[312873210,1706386231680,-737.05569696,0.000225,2]
[312873211,1706386231700,-3.08377879,0.000225,2]
[312873212,1706386231710,-2643.87443057,0.00022501,2]
[312873213,1706386231719,-630.6668591,0.00022503,2]
[312873214,1706386231728,-132.34801142,0.00022503,2]
[312873215,1706386231740,-23.35550156,0.00022503,2]
[312873216,1706386231749,-163.10021139,0.00022503,2]
[312873217,1706386231758,-430.46930717,0.00022503,2]
[312873218,1706386231768,-240.73828906,0.00022503,2]
[312873220,1706386231778,-304.3099157,0.00022503,2]
[312873222,1706386231787,-181.47713907,0.00022503,2]
[312873223,1706386231797,-452.26312052,0.00022503,2]
[312873224,1706386231808,-500.89962644,0.00022503,2]
[312873225,1706386231819,-803.85804717,0.00022503,2]
[312873226,1706386231830,-396.02178286,0.00022503,2]
[312873227,1706386231840,-549.29720639,0.00022503,2]
[312873228,1706386231850,-241.43245713,0.00022503,2]
[312873229,1706386231861,-242.65344429,0.00022503,2]
[312873230,1706386231871,-247.14293788,0.00022503,2]
[312873231,1706386231882,-202.26604685,0.00022503,2]
[312873232,1706386231892,-1311.01209827,0.00022503,2]
[312873233,1706386231902,-420.22547805,0.00022503,2]
[312873234,1706386231912,-178.94185082,0.00022503,2]
[312873235,1706386231921,-270.34902389,0.00022503,2]
[312873236,1706386231932,-555.31725152,0.00022503,2]
[312873237,1706386231942,-221.84548821,0.00022503,2]
[312873238,1706386231951,-1141.43858445,0.00022503,2]
[312873239,1706386231960,-525.41882118,0.00022503,2]
[312873240,1706386231970,-287.34970429,0.00022503,2]
[312873241,1706386231981,-385.60858613,0.00022503,2]
[312873242,1706386231994,-160.02352615,0.00022503,2]
[312873243,1706386232004,-178.15674416,0.00022503,2]
[312873244,1706386232014,-302.13294978,0.00022503,2]
[312873245,1706386232027,-424.80217978,0.00022503,2]
[312873246,1706386232039,-603.01113768,0.00022503,2]
[312873247,1706386232051,-496.10168245,0.00022503,2]
[312873248,1706386232066,-778.95203321,0.00022503,2]
[312873249,1706386232076,-1813.68084069,0.00022503,2]
[312873250,1706386232086,-1973.6480857,0.00022503,2]
[312873251,1706386232096,-178.6453615,0.00022503,2]
[312873252,1706386232106,-2315.41672002,0.00022503,2]
[312873253,1706386232117,-667.61891395,0.00022503,2]
[312873254,1706386232130,-763.3723559,0.00022503,2]
[312873255,1706386232142,-6650.93244575,0.00022503,2]
[312873256,1706386232152,-335.20849615,0.00022503,2]
[312873257,1706386232161,-239.72812841,0.00022503,2]
[312873258,1706386232171,-189.22677408,0.00022503,2]
[312873259,1706386232180,-292.80464253,0.00022503,2]
[312873260,1706386232191,-605.51298084,0.00022503,2]
[312873261,1706386232201,-203.58027421,0.00022503,2]
[312873262,1706386232210,-507.36267549,0.00022503,2]
[312873263,1706386232220,-10980.59242981,0.00022504,2]
[312873264,1706386232230,-34036.17331124,0.00022505,2]
[312873265,1706386232241,-517.85068696,0.00022505,2]
[312873266,1706386232253,-1386.72675487,0.00022505,2]
[312873267,1706386232265,-2872.46869429,0.00022505,2]
[312873268,1706386232277,-781.66048185,0.00022505,2]
[312873269,1706386232292,-564.66263687,0.00022505,2]
[312873270,1706386232303,-521.07491688,0.00022505,2]
[312873271,1706386232315,-341.48500725,0.00022505,2]
[312873289,1706386237478,-808.75030777,0.00022505,2]
[312873290,1706386237493,-741.27723955,0.00022505,2]
[312873291,1706386237505,-420.8888349,0.00022505,2]
[312873292,1706386237518,-7408.30737337,0.00022505,2]
[312873293,1706386237534,-7528.42641462,0.00022505,2]
[312873294,1706386237589,-400.0,0.00022505,2]
[312873295,1706386237755,-73960.15607214,0.00022505,2]
[312873296,1706386237766,-4214.62237681,0.00022506,2]
[312873297,1706386237775,-246.99950823,0.00022506,2]
[312873298,1706386237784,-261.17719989,0.00022506,2]
[312873299,1706386237794,-652.57373136,0.00022506,2]
[312873300,1706386237803,-157.86817586,0.00022506,2]
[312873301,1706386237812,-360.40715951,0.00022506,2]
[312873302,1706386237822,-421.66148633,0.00022506,2]
[312873303,1706386237831,-285.22294561,0.00022506,2]
[312873304,1706386237841,-156.62849969,0.00022506,2]
[312873305,1706386237850,-324.53325712,0.00022506,2]
[312873306,1706386237860,-217.30789739,0.00022506,2]
[312873308,1706386237870,-177.00939025,0.00022506,2]
[312873310,1706386237880,-1716.23354059,0.00022506,2]
[312873312,1706386237889,-228.53435548,0.00022506,2]
[312873314,1706386237898,-190.60137795,0.00022506,2]
[312873316,1706386237907,-7792.27707093,0.00022506,2]
[312873317,1706386237916,-200.4169865,0.00022506,2]
[312873319,1706386237926,-158.32950144,0.00022506,2]
[312873321,1706386237936,-527.37427978,0.00022506,2]
[312873323,1706386237945,-156.78738203,0.00022506,2]
[312873325,1706386237954,-3943.15436662,0.00022506,2]
[312873327,1706386237963,-501.91976884,0.00022506,2]
[312873330,1706386237974,-318.24086074,0.00022506,2]
[312873331,1706386237983,-196.49765955,0.00022506,2]
[312873332,1706386237995,-190.54461324,0.00022506,2]
[312873333,1706386238004,-155.45037873,0.00022506,2]
[312873334,1706386238013,-457.24708661,0.00022506,2]
[312873335,1706386238023,-156.37062616,0.00022506,2]
[312873336,1706386238033,-155.44390996,0.00022506,2]
[312873337,1706386238043,-156.47648976,0.00022506,2]
[312873338,1706386238052,-156.0921781,0.00022506,2]
[312873339,1706386238062,-277.17272826,0.00022506,2]
[312873340,1706386238073,-202.94837059,0.00022506,2]
[312873341,1706386238083,-159.87718089,0.00022506,2]
[312873342,1706386238093,-156.43646517,0.00022506,2]
[312873343,1706386238103,-236.60068127,0.00022506,2]
[312873344,1706386238112,-11771.85143964,0.00022506,2]
[312873345,1706386238121,-2306.20037107,0.00022506,2]
[312873346,1706386238131,-156.62860328,0.00022506,2]
[312873347,1706386238140,-4557.98551861,0.00022506,2]
[312873348,1706386238150,-1000.0,0.00022506,2]
[312873349,1706386238161,-155.86402743,0.00022506,2]
[312873350,1706386238170,-156.2918762,0.00022506,2]
[312873351,1706386238179,-206.73159676,0.00022507,2]
[312873352,1706386238188,-219.04810795,0.00022509,2]
[312873353,1706386238198,-1859.24759143,0.00022509,2]
[312873354,1706386238207,-230.73082258,0.00022509,2]
[312873355,1706386238217,-181.1682547,0.00022509,2]
[312873356,1706386238226,-215.77509695,0.00022509,2]
[312873357,1706386238235,-226.87966989,0.00022509,2]
[312873358,1706386238245,-528.74144808,0.00022509,2]
[312873359,1706386238255,-383.76753435,0.00022509,2]
[312873360,1706386238264,-248.66279264,0.00022509,2]
[312873361,1706386238273,-1518.11308694,0.00022509,2]
[312873362,1706386238283,-4640.64426459,0.00022509,2]
[312873363,1706386238292,-157.06941683,0.00022509,2]
[312873364,1706386238301,-173.65252052,0.00022509,2]
[312873365,1706386238311,-2300.07012469,0.00022509,2]
[312873366,1706386238320,-180.60041889,0.00022509,2]
[312873367,1706386238330,-427.02443553,0.00022509,2]
[312873368,1706386238340,-159.09532459,0.00022509,2]
[312873369,1706386238350,-1188.57964056,0.00022509,2]
[312873370,1706386238360,-203.09146154,0.00022509,2]
[312873371,1706386238369,-346.30115323,0.00022509,2]
[312873372,1706386238378,-2963.8992538,0.00022509,2]
[312873373,1706386238389,-175.69787021,0.00022509,2]
[312873374,1706386238398,-412.5888739,0.00022509,2]
[312873375,1706386238407,-157.65303296,0.00022509,2]
[312873376,1706386238416,-317.43646122,0.00022509,2]
[312873377,1706386238426,-409.18301003,0.00022509,2]
[312873378,1706386238435,-164.27753004,0.00022509,2]
[312873379,1706386238444,-156.84105949,0.00022509,2]
[312873380,1706386238453,-523.90903147,0.00022509,2]
[312873381,1706386238462,-160.56812687,0.00022509,2]
[312873382,1706386238471,-156.64742908,0.00022509,2]
[312873383,1706386238481,-542.93511757,0.00022509,2]
[312873384,1706386238490,-208.152724,0.00022509,2]
[312873385,1706386238501,-155.0,0.00022509,2]
[312873386,1706386238510,-362.63410666,0.00022509,2]
[312873387,1706386238519,-157.35382223,0.00022509,2]
[312873388,1706386238529,-758.57178046,0.00022509,2]
[312873389,1706386238539,-1399.1263572,0.00022509,2]
[312873390,1706386238549,-155.8760207,0.00022509,2]
[312873391,1706386238558,-870.18670608,0.00022509,2]
[312873392,1706386238568,-156.31296432,0.00022509,2]
[312873393,1706386238577,-155.5919666,0.00022509,2]
[312873394,1706386238588,-161.33076869,0.00022509,2]
[312873395,1706386238598,-350.62507909,0.00022509,2]
[312873396,1706386238608,-185.86777237,0.00022509,2]
[312873397,1706386238618,-1828.75113108,0.00022509,2]
[312873398,1706386238628,-268.81642204,0.00022509,2]
[312873399,1706386238637,-220.43024859,0.00022509,2]
[312873400,1706386238646,-426.37,0.00022509,2]
[312873401,1706386238655,-392.31,0.00022509,2]
[312873402,1706386238664,-2415.3,0.00022509,2]
[312873403,1706386238808,-929.50886508,0.0002251,2]
[312873404,1706386238819,-496.85,0.0002252,2]
[312873405,1706386238829,-176.61,0.00022548,2]
[312873406,1706386238838,-496.85,0.0002258,2]
[312873407,1706386238848,-184.31,0.00022598,2]
[312873408,1706386238857,-496.85,0.0002264,2]
[312873409,1706386238866,-177.79813521,0.00022657,2]
[312873410,1706386238875,-416.8373,0.00022668,2]
[312873411,1706386238885,-247.42374992,0.00022669,2]
[312873412,1706386238895,-155.0,0.00022669,2]
[312873413,1706386238904,-157.64331235,0.00022669,2]
[312873414,1706386238914,-160.0,0.00022686,2]
[312873415,1706386238923,-11773.73,0.00022686,2]
[312873416,1706386238933,-1617.04791249,0.000227,2]
[312873417,1706386238942,-496.85,0.00022701,2]
[312873418,1706386238951,-171.94541592,0.00022722,2]
[312873419,1706386238961,-1617.04791244,0.00022729,2]
[312873420,1706386238971,-1617.04791244,0.00022757,2]
[312873421,1706386238985,-496.85,0.00022761,2]
[312873422,1706386238994,-3020.30323365,0.00022766,2]
[312873423,1706386239003,-171.75011329,0.00022768,2]
[312873424,1706386239012,-151.0,0.0002277,2]
[312873425,1706386239022,-1617.04791244,0.00022786,2]
[312873426,1706386239031,-69372.4152,0.000228,2]
[312873427,1706386239042,-500.0,0.000228,2]
[312873428,1706386239052,-1000.0,0.000228,2]
[312873429,1706386239063,-18424.9427,0.000228,2]
[312873430,1706386239073,-1617.04791244,0.00022814,2]
[312873431,1706386239082,-496.85,0.00022822,2]
[312873432,1706386239092,-104.65977906,0.00022843,2]
[312873433,1706386239109,-1512.38813338,0.00022843,2]
[312873434,1706386239119,-496.85,0.00022882,2]
[312873435,1706386239129,-200.99935094,0.00022898,2]
[312873436,1706386239140,-155.05903451,0.00022898,2]
[312873437,1706386239150,-260.29941624,0.00022898,2]
[312873438,1706386239160,-155.0,0.00022898,2]
[312873439,1706386239169,-155.0,0.00022898,2]
[312873440,1706386239179,-145116.4275,0.000229,2]
[312873441,1706386239189,-1000.0,0.000229,2]
[312873442,1706386239199,-1217.4283,0.000229,2]
[312873443,1706386239208,-55555.0,0.000229,2]
[312873444,1706386239219,-177.79813521,0.000229,2]
[312873445,1706386239228,-46003.34908279,0.000229,2]
[312873446,1706386239238,-207.66902253,0.000229,4]
[312873447,1706386239248,-182.84473522,0.000229,2]
[312873448,1706386239259,-3489.52551667,0.000229,2]
[312873449,1706386239270,-422.62868202,0.000229,2]
[312873450,1706386239280,-4140.56217064,0.000229,6]
[312873451,1706386239290,-6112.7525868,0.000229,2]
[312873452,1706386239300,-379.47313336,0.000229,2]
[312873453,1706386239311,-332.48350222,0.000229,2]
[312873454,1706386239321,-165.98043855,0.000229,2]
[312873455,1706386239331,-496.85,0.00022943,2]
[312873456,1706386239341,-314.59008109,0.00022998,2]
[312873457,1706386239350,-155.2062219,0.00022998,2]
[312873458,1706386239360,-156.40585233,0.00022998,2]
[312873459,1706386239371,-1766.13596665,0.00022998,2]
[312873460,1706386239381,-302.67635463,0.00022998,2]
[312873461,1706386239390,-767.73599563,0.00022998,2]
[312873462,1706386239400,-201.0,0.00022999,2]
[312873463,1706386239409,-515.78040305,0.00022999,2]
[312873464,1706386239418,-532.56040023,0.00022999,2]
[312873465,1706386239427,-500.0,0.00022999,2]
[312873466,1706386239436,-596.81744998,0.00022999,2]
[312873467,1706386239446,-292.60786063,0.00022999,2]
[312873468,1706386239455,-489.62638341,0.00022999,2]
[312873469,1706386239464,-500.0,0.00022999,2]
[312873470,1706386239474,-500.0,0.00022999,2]
[312873471,1706386239483,-500.0,0.00022999,2]
[312873472,1706386239492,-500.0,0.00022999,2]
[312873473,1706386239501,-500.0,0.00022999,2]
[312873474,1706386239511,-455.08345928,0.00022999,2]
[312873475,1706386239521,-500.0,0.00022999,2]
[312873476,1706386239530,-500.0,0.00022999,2]
[312873477,1706386239539,-500.0,0.00022999,2]
[312873478,1706386239548,-500.0,0.00022999,2]
[312873479,1706386239557,-500.0,0.00022999,2]
[312873480,1706386239567,-500.0,0.00022999,2]
[312873481,1706386239577,-500.0,0.00022999,2]
[312873482,1706386239586,-500.0,0.00022999,2]
[312873483,1706386239595,-392.57404995,0.00022999,2]
[312873484,1706386239604,-315.71612658,0.00022999,2]
[312873485,1706386239614,-500.0,0.00022999,2]
[312873486,1706386239623,-500.0,0.00022999,2]
[312873487,1706386239633,-213.46942142,0.00022999,2]
[312873488,1706386239642,-500.0,0.00022999,2]
[312873489,1706386239652,-500.0,0.00022999,2]
[312873490,1706386239661,-477.92617237,0.00022999,2]
[312873491,1706386239671,-500.0,0.00022999,2]
[312873492,1706386239680,-500.0,0.00022999,2]
[312873493,1706386239690,-242.64093387,0.00022999,2]
[312873494,1706386239699,-500.0,0.00022999,2]
[312873495,1706386239709,-500.0,0.00022999,2]
[312873496,1706386239718,-500.0,0.00022999,2]
[312873497,1706386239727,-500.0,0.00022999,2]
[312873498,1706386239736,-203.48760712,0.00022999,2]
[312873499,1706386239745,-500.0,0.00022999,2]
[312873500,1706386239755,-550.0,0.00022999,2]
[312873501,1706386239764,-233.75905372,0.00022999,2]
[312873503,1706386239773,-500.0,0.00022999,2]
[312873504,1706386239782,-449.40706494,0.00022999,2]
[312873505,1706386239793,-500.0,0.00022999,2]
[312873506,1706386239802,-500.0,0.00022999,2]
[312873507,1706386239811,-500.0,0.00022999,2]
[312873508,1706386239821,-200.0,0.00022999,2]
[312873509,1706386239830,-500.0,0.00022999,2]
[312873510,1706386239840,-580.21031778,0.00022999,2]
[312873511,1706386239849,-350.0,0.00022999,2]
[312873512,1706386239859,-500.0,0.00022999,2]
[312873513,1706386239868,-250.0,0.00022999,2]
[312873514,1706386239878,-500.0,0.00022999,2]
[312873515,1706386239888,-500.0,0.00022999,2]
[312873516,1706386239898,-426.85203897,0.00022999,2]
[312873517,1706386239908,-500.0,0.00022999,2]
[312873518,1706386239918,-500.0,0.00022999,2]
[312873519,1706386239928,-497.71825504,0.00022999,2]
[312873520,1706386239937,-350.0,0.00022999,2]
[312873521,1706386239947,-500.0,0.00022999,2]
[312873522,1706386239957,-551.21518694,0.00022999,2]
[312873523,1706386239966,-515.36455608,0.00022999,2]
[312873524,1706386239976,-350.0,0.00022999,2]
[312873525,1706386239987,-500.0,0.00022999,2]
[312873526,1706386239997,-350.0,0.00022999,2]
[312873527,1706386240006,-350.0,0.00022999,2]
[312873528,1706386240015,-350.0,0.00022999,2]
[312873529,1706386240025,-350.0,0.00022999,2]
[312873530,1706386240034,-350.0,0.00022999,2]
[312873531,1706386240043,-500.0,0.00022999,2]
[312873532,1706386240053,-500.0,0.00022999,2]
[312873533,1706386240062,-500.0,0.00022999,2]
[312873534,1706386240073,-500.0,0.00022999,2]
[312873535,1706386240082,-410.1887566,0.00022999,2]
[312873536,1706386240093,-500.0,0.00022999,2]
[312873537,1706386240102,-500.0,0.00022999,2]
[312873538,1706386240111,-500.0,0.00022999,2]
[312873539,1706386240120,-570.62680442,0.00022999,2]
[312873540,1706386240129,-500.0,0.00022999,2]
[312873541,1706386240139,-481.41942055,0.00022999,2]
[312873542,1706386240149,-500.0,0.00022999,2]
[312873543,1706386240158,-500.0,0.00022999,2]
[312873544,1706386240168,-427.25332305,0.00022999,2]
[312873545,1706386240177,-384.41182309,0.00022999,2]
[312873546,1706386240187,-500.0,0.00022999,2]
[312873547,1706386240198,-500.0,0.00022999,2]
[312873548,1706386240208,-500.0,0.00022999,2]
[312873549,1706386240218,-500.0,0.00022999,2]
[312873550,1706386240228,-500.0,0.00022999,2]
[312873551,1706386240238,-500.0,0.00022999,2]
[312873552,1706386240247,-500.0,0.00022999,2]
[312873553,1706386240256,-500.0,0.00022999,2]
[312873554,1706386240266,-500.0,0.00022999,2]
[312873555,1706386240276,-500.0,0.00022999,2]
[312873556,1706386240285,-500.0,0.00022999,2]
[312873557,1706386240294,-500.0,0.00022999,2]
[312873558,1706386240304,-232.87940834,0.00022999,2]
[312873559,1706386240313,-500.0,0.00022999,2]
[312873560,1706386240322,-500.0,0.00022999,2]
[312873561,1706386240331,-500.0,0.00022999,2]
[312873562,1706386240341,-350.0,0.00022999,2]
[312873563,1706386240351,-350.0,0.00022999,2]
[312873564,1706386240361,-500.0,0.00022999,2]
[312873565,1706386240371,-500.0,0.00022999,2]
[312873566,1706386240382,-350.0,0.00022999,2]
[312873567,1706386240392,-500.0,0.00022999,2]
[312873568,1706386240401,-500.0,0.00022999,2]
[312873569,1706386240411,-200.0,0.00022999,2]
[312873570,1706386240422,-500.0,0.00022999,2]
[312873571,1706386240431,-500.0,0.00022999,2]
[312873572,1706386240441,-200.0,0.00022999,2]
[312873573,1706386240451,-500.0,0.00022999,2]
[312873574,1706386240461,-200.0,0.00022999,2]
[312873575,1706386240471,-456.7105915,0.00022999,2]
[312873576,1706386240480,-351.81316815,0.00022999,2]
[312873577,1706386240490,-350.00000001,0.00022999,2]
[312873578,1706386240499,-500.0,0.00022999,2]
[312873579,1706386240508,-498.09531665,0.00022999,2]
[312873580,1706386240518,-350.00000001,0.00022999,2]
[312873581,1706386240527,-350.0,0.00022999,2]
[312873582,1706386240537,-497.30410888,0.00022999,2]
[312873583,1706386240546,-500.0,0.00022999,2]
[312873584,1706386240557,-214.09117501,0.00022999,2]
[312873585,1706386240566,-500.0,0.00022999,2]
[312873586,1706386240576,-500.0,0.00022999,2]
[312873587,1706386240586,-532.93803854,0.00022999,2]
[312873588,1706386240595,-500.0,0.00022999,2]
[312873589,1706386240604,-500.0,0.00022999,2]
[312873590,1706386240613,-500.0,0.00022999,2]
[312873591,1706386240622,-500.0,0.00022999,2]
[312873592,1706386240631,-387.41148761,0.00022999,2]
[312873593,1706386240641,-420.60832309,0.00022999,2]
[312873594,1706386240650,-396.15574549,0.00022999,2]
[312873595,1706386240661,-164.74792418,0.00022999,2]
[312873596,1706386240670,-258.20366855,0.00022999,2]
[312873597,1706386240679,-500.0,0.00022999,2]
[312873598,1706386240689,-285.6161033,0.00022999,2]
[312873599,1706386240698,-479.92539995,0.00022999,2]
[312873600,1706386240707,-514.79104552,0.00022999,2]
[312873601,1706386240716,-500.0,0.00022999,2]
[312873602,1706386240725,-500.0,0.00022999,2]
[312873603,1706386240734,-500.0,0.00022999,2]
[312873604,1706386240743,-455.95103943,0.00022999,2]
[312873605,1706386240751,-490.6470275,0.00022999,2]
[312873606,1706386240761,-500.0,0.00022999,2]
[312873607,1706386240770,-500.0,0.00022999,2]
[312873608,1706386240779,-500.0,0.00022999,2]
[312873609,1706386240788,-500.0,0.00022999,2]
[312873610,1706386240798,-443.44833517,0.00022999,2]
[312873611,1706386240807,-500.0,0.00022999,2]
[312873612,1706386240816,-500.0,0.00022999,2]
[312873613,1706386240826,-500.0,0.00022999,2]
[312873614,1706386240836,-377.55456477,0.00022999,2]
[312873615,1706386240844,-332.63042806,0.00022999,2]
[312873618,1706386240854,-412.71454473,0.00022999,2]
[312873621,1706386240863,-500.0,0.00022999,2]
[312873623,1706386240872,-500.0,0.00022999,2]
[312873625,1706386240881,-500.0,0.00022999,2]
[312873627,1706386240890,-350.0,0.00022999,2]
[312873629,1706386240899,-543.29636583,0.00022999,2]
[312873631,1706386240908,-463.00060438,0.00022999,2]
[312873633,1706386240917,-500.0,0.00022999,2]
[312873635,1706386240926,-394.13887871,0.00022999,2]
[312873637,1706386240936,-500.0,0.00022999,2]
[312873639,1706386240945,-500.0,0.00022999,2]
[312873641,1706386240954,-561.20384364,0.00022999,2]
[312873643,1706386240964,-395.80067122,0.00022999,2]